Workbook

Sheet Size solar panel
C1: CENTURION QUICK SOLAR PANEL CALCULATOR
C2: Please enter the number of operations per day for the system being used. In addition enter the running current and cycle time if different to default.
B3: OPERATOR | C3: Items (qty) | D3: No Of CYCLES Per Day | E3: Quiescent current (mA) | F3: Quiescent energy (Ahr) | G3: Default ACTIVE current (A) | H3: Alternate ACTIVE current (A) | I3: Default CYCLE time (Secs) | J3: Alternate CYCLE time (Secs) | K3: Active consumed Ah (per cycle) | L3: Total active energy (Ahrs) | M3: Total energy (Ahr) | N3: Operator SubTotal (Whrs)
C4: 1 | D4: 1 | E4: =IFERROR(VLOOKUP(B4,DATA!$1:$1048576,3,FALSE),"") ->  | F4: =IFERROR(VLOOKUP(B4,DATA!$1:$1048576,6,FALSE),"") ->  | G4: =IFERROR(VLOOKUP(B4,DATA!$1:$1048576,4,FALSE),"") ->  | I4: =IFERROR(VLOOKUP(B4,DATA!$1:$1048576,5,FALSE),"") ->  | K4: =IF(B4<>"",IF(H4<>"",H4,G4)*IF(J4<>"",J4,I4)/3600,"") ->  | L4: =IF(B4<>"",D4*K4,"") ->  | M4: =IF(B4<>"",F4+L4,"") ->  | N4: =IF(B4<>"",IF(C4<>"",C4,1)*M4*IFERROR(VLOOKUP(B4,DATA!$1:$1048576,2,FALSE),""),"") -> 
C6: ^Please enter the quantity of Centurion auxiliaries being used, and number of utilisations per day
B7: ACCESSORY | C7: Items (qty) | D7: No Of CYCLES Per Day | E7: Quiescent current (mA) | F7: Quiescent energy (Ahr) | G7: Default ACTIVE current (A) | H7: Alternate ACTIVE current (A) | I7: Default CYCLE time (Secs) | J7: Alternate CYCLE time (Secs) | N7: Accessory SubTotals (Whrs) | P7: ^Please enter the quantity of Centurion auxiliaries being used, and number of utilisations per day
C8: 1 | D8: 1 | E8: =IFERROR(VLOOKUP(B8,DATA!$1:$1048576,3,FALSE),"") ->  | F8: =IFERROR(VLOOKUP(B8,DATA!$1:$1048576,6,FALSE),"") ->  | G8: =IFERROR(VLOOKUP(B8,DATA!$1:$1048576,4,FALSE),"") ->  | I8: =IFERROR(VLOOKUP(B8,DATA!$1:$1048576,5,FALSE),"") ->  | K8: =IF(B8<>"",IF(H8<>"",H8,G8)*IF(J8<>"",J8,I8)/3600,"") ->  | L8: =IF(B8<>"",D8*K8,"") ->  | M8: =IF(B8<>"",F8+L8,"") ->  | N8: =IF(B8<>"",IF(C8<>"",C8,1)*M8*IFERROR(VLOOKUP(B8,DATA!$1:$1048576,2,FALSE),""),"") -> 
C9: 1 | D9: 1 | E9: =IFERROR(VLOOKUP(B9,DATA!$1:$1048576,3,FALSE),"") ->  | F9: =IFERROR(VLOOKUP(B9,DATA!$1:$1048576,6,FALSE),"") ->  | G9: =IFERROR(VLOOKUP(B9,DATA!$1:$1048576,4,FALSE),"") ->  | I9: =IFERROR(VLOOKUP(B9,DATA!$1:$1048576,5,FALSE),"") ->  | N9: =IF(B9<>"",IF(C9<>"",C9,1)*M9*IFERROR(VLOOKUP(B9,DATA!$1:$1048576,2,FALSE),""),"") -> 
C10: 1 | D10: 1 | E10: =IFERROR(VLOOKUP(B10,DATA!$1:$1048576,3,FALSE),"") ->  | F10: =IFERROR(VLOOKUP(B10,DATA!$1:$1048576,6,FALSE),"") ->  | G10: =IFERROR(VLOOKUP(B10,DATA!$1:$1048576,4,FALSE),"") ->  | I10: =IFERROR(VLOOKUP(B10,DATA!$1:$1048576,5,FALSE),"") ->  | N10: =IF(B10<>"",IF(C10<>"",C10,1)*M10*IFERROR(VLOOKUP(B10,DATA!$1:$1048576,2,FALSE),""),"") -> 
C11: 1 | D11: 1 | E11: =IFERROR(VLOOKUP(B11,DATA!$1:$1048576,3,FALSE),"") ->  | F11: =IFERROR(VLOOKUP(B11,DATA!$1:$1048576,6,FALSE),"") ->  | G11: =IFERROR(VLOOKUP(B11,DATA!$1:$1048576,4,FALSE),"") ->  | I11: =IFERROR(VLOOKUP(B11,DATA!$1:$1048576,5,FALSE),"") ->  | N11: =IF(B11<>"",IF(C11<>"",C11,1)*M11*IFERROR(VLOOKUP(B11,DATA!$1:$1048576,2,FALSE),""),"") -> 
C12: 1 | D12: 1 | E12: =IFERROR(VLOOKUP(B12,DATA!$1:$1048576,3,FALSE),"") ->  | F12: =IFERROR(VLOOKUP(B12,DATA!$1:$1048576,6,FALSE),"") ->  | G12: =IFERROR(VLOOKUP(B12,DATA!$1:$1048576,4,FALSE),"") ->  | I12: =IFERROR(VLOOKUP(B12,DATA!$1:$1048576,5,FALSE),"") ->  | N12: =IF(B12<>"",IF(C12<>"",C12,1)*M12*IFERROR(VLOOKUP(B12,DATA!$1:$1048576,2,FALSE),""),"") -> 
C13: 1 | D13: 1 | E13: =IFERROR(VLOOKUP(B13,DATA!$1:$1048576,3,FALSE),"") ->  | F13: =IFERROR(VLOOKUP(B13,DATA!$1:$1048576,6,FALSE),"") ->  | G13: =IFERROR(VLOOKUP(B13,DATA!$1:$1048576,4,FALSE),"") ->  | I13: =IFERROR(VLOOKUP(B13,DATA!$1:$1048576,5,FALSE),"") ->  | N13: =IF(B13<>"",IF(C13<>"",C13,1)*M13*IFERROR(VLOOKUP(B13,DATA!$1:$1048576,2,FALSE),""),"") -> 
C14: 1 | D14: 1 | E14: =IFERROR(VLOOKUP(B14,DATA!$1:$1048576,3,FALSE),"") ->  | F14: =IFERROR(VLOOKUP(B14,DATA!$1:$1048576,6,FALSE),"") ->  | G14: =IFERROR(VLOOKUP(B14,DATA!$1:$1048576,4,FALSE),"") ->  | I14: =IFERROR(VLOOKUP(B14,DATA!$1:$1048576,5,FALSE),"") ->  | N14: =IF(B14<>"",IF(C14<>"",C14,1)*M14*IFERROR(VLOOKUP(B14,DATA!$1:$1048576,2,FALSE),""),"") -> 
H15: NETT Power Req (Whrs) | N15: =SUM(N8:N14,N4) -> 0
B18: Panel Size: | C18: =IF(VLOOKUP(B4,DATA!$1:$1048576,2,FALSE)=12,"1 x " & TEXT(D23,"0.0"),"2 x " & TEXT(D23/2,"0.0")) & "W (min)" -> 
H19: Notes: | I19: NB - Please do not forget to select a solar regulator for the system.
B20: NETT Power Required: | D20: =+N15 -> 0 | G20: Whrs
B21: Derate due to dust etc.: | C21: 0.2 | D21: =+D20*(1+C21) -> 0 | G21: Whrs
B22: Provide overhead to fully charge battery: | C22: 0.15 | D22: =+D21*(1+C22) -> 0 | G22: Whrs
B23: Geographic Insolation (hrs/day): | C23: 4.75 | D23: =+D21/C23 -> 0 | G23: W
B26: Battery Size: | C26: =IF(VLOOKUP(B4,DATA!$1:$1048576,2,FALSE)=12,"1 x " & TEXT(D31,"0.0"),"2 x " & TEXT(D31/2,"0.0")) & "Ah (min):-" ->  | I26: =TEXT(Autonomy,"0.0") & " day autonomy" -> 1.0 day autonomy
B28: Autonomy: | C28: 1 | D28: Days
B29: DoD Allowable for Battery being used: | C29: 0.2 | D29: Preferably deep cycle
B31: Total Ah Capacity Needed: | D31: =IF(OR(ISBLANK(C28),C28=0),"???",D22*C28/C29/VLOOKUP(B4,DATA!$1:$1048576,2,FALSE)) ->  | G31: Ah

Sheet DATA
B3: VOLTS | C3: CURRENT | E3: TIME | F3: ENERGY | H3: WATTS
A4: OPERATOR | B4: SYSTEM VOLTAGE | C4: QUIESCENT CURRENT (mA) | D4: ACTIVE CURRENT (A) | E4: TIME / OPERATION - Secs Active (OPEN & CLOSE, etc.) | F4: Quiescent Ah consummed (per 24hrs) | G4: Active Ah consumed (per cycle) | H4: Quiescent W consumed (per 24hrs) | I4: Active W consumed (per cycle) | K4: CONTROLLER | L4: FACTOR
A5: D2 Turbo Sliding Gate Operator | B5: 12 | C5: 95 | D5: 8 | E5: 20 | F5: =IF(C5>0,C5/1000*24,"") -> 2.28 | G5: =IF(A5<>"",IF(D5>0,D5*E5/(60*60),C5),"") -> 0.04444444444 | H5: =IF(C5>0,F5*B5,"") -> 27.36 | I5: =IF(D5>0,G5*H5,"") -> 1.216 | K5: Controller - D2 Turbo | L5: 1
A6: D5-EVO Sliding Gate Operator | B6: 12 | C6: 75 | D6: 8 | E6: 30 | F6: =IF(C6>0,C6/1000*24,"") -> 1.8 | G6: =IF(A6<>"",IF(D6>0,D6*E6/(60*60),C6),"") -> 0.06666666667 | H6: =IF(C6>0,F6*B6,"") -> 21.6 | I6: =IF(D6>0,G6*H6,"") -> 1.44 | K6: Controller - EVO | L6: 1
A7: D10 Sliding Gate Operator (24VDC system) | B7: 24 | C7: 80 | D7: 6 | E7: 30 | F7: 1.92 | G7: 0.05 | H7: 46.08 | I7: 2.304 | K7: Controller - D10 | L7: 0.65
A8: D10 Turbo Sliding Gate Operator (24VDC system) | B8: 24 | C8: 80 | D8: 10 | E8: 20 | F8: 1.92 | G8: 0.05555555556 | H8: 46.08 | I8: 2.56 | K8: Controller - D10 | L8: 0.65
A9: A10 Sliding Gate Operator (using DC convertor) | B9: 12 | C9: 16 | D9: 20 | E9: 30 | F9: 0.384 | G9: 0.1666666667 | H9: 4.608 | I9: 0.768 | K9: CP201 | L9: 1
A10: R3 Single Swing Gate Operator | B10: 12 | C10: 16 | D10: 4 | E10: 35 | F10: 0.384 | G10: 0.03888888889 | H10: 4.608 | I10: 0.1792 | K10: CP75 | L10: 1
A11: R3 Double Swing Gate Operator | B11: 12 | C11: 16 | D11: 8 | E11: 35 | F11: 0.384 | G11: 0.07777777778 | H11: 4.608 | I11: 0.3584 | K11: CP75 | L11: 1
A12: R5 Single Swing Gate Operator | B12: 12 | C12: 16 | D12: 5 | E12: 40 | F12: 0.384 | G12: 0.05555555556 | H12: 4.608 | I12: 0.256 | K12: CP75 | L12: 1
A13: R5 Double Swing Gate Operator | B13: 12 | C13: 16 | D13: 10 | E13: 40 | F13: 0.384 | G13: 0.1111111111 | H13: 4.608 | I13: 0.512 | K13: CP75 | L13: 1
A14: MAXI-MATE Single Swing Gate Operator | B14: 12 | C14: 25 | D14: 5 | E14: 40 | F14: 0.6 | G14: 0.05555555556 | H14: 7.2 | I14: 0.4 | K14: CP77 | L14: 1
A15: MAXI-MATE Double Swing Gate Operator | B15: 12 | C15: 25 | D15: 10 | E15: 40 | F15: 0.6 | G15: 0.1111111111 | H15: 7.2 | I15: 0.8 | K15: CP77 | L15: 1
A16: VECTOR Single Swing Gate Operator (V400) | B16: 12 | C16: 48 | D16: 2 | E16: 28 | F16: 1.152 | G16: 0.01555555556 | H16: 13.824 | I16: 0.21504 | K16: Controller - V-SERIES | L16: 1
A17: VECTOR Single Swing Gate Operator (V500) | B17: 12 | C17: 48 | D17: 2 | E17: 35 | F17: 1.152 | G17: 0.01944444444 | H17: 13.824 | I17: 0.2688 | K17: Controller - V-SERIES | L17: 1
A18: VECTOR Double Swing Gate Operator (V400) | B18: 12 | C18: 48 | D18: 4 | E18: 28 | F18: 1.152 | G18: 0.03111111111 | H18: 13.824 | I18: 0.43008 | K18: Controller - V-SERIES | L18: 1
A19: VECTOR Double Swing Gate Operator (V500) | B19: 12 | C19: 48 | D19: 4 | E19: 35 | F19: 1.152 | G19: 0.03888888889 | H19: 13.824 | I19: 0.5376 | K19: Controller - V-SERIES | L19: 1
A20: VANTAGE Single Swing Gate Operator (VT400) | B20: 12 | C20: 73 | D20: 2 | E20: 28 | F20: 1.752 | G20: 0.01555555556 | H20: 21.024 | I20: 0.32704 | K20: Controller - V-SERIES | L20: 1
A21: VANTAGE Single Swing Gate Operator (VT500) | B21: 12 | C21: 48 | D21: 2 | E21: 35 | F21: 1.152 | G21: 0.01944444444 | H21: 13.824 | I21: 0.2688 | K21: Controller - V-SERIES | L21: 1
A22: VANTAGE Double Swing Gate Operator (VT400) | B22: 12 | C22: 48 | D22: 4 | E22: 28 | F22: 1.152 | G22: 0.03111111111 | H22: 13.824 | I22: 0.43008 | K22: Controller - V-SERIES | L22: 1
A23: VANTAGE Double Swing Gate Operator (VT500) | B23: 12 | C23: 48 | D23: 4 | E23: 35 | F23: 1.152 | G23: 0.03888888889 | H23: 13.824 | I23: 0.5376 | K23: Controller - V-SERIES | L23: 1
A24: VERT-X Single Swing Gate Operator (VX300) | B24: 12 | C24: 48 | D24: 2 | E24: 25 | F24: 1.152 | G24: 0.01388888889 | H24: 13.824 | I24: 0.192 | K24: Controller - V-SERIES | L24: 1
A25: VERT-X Double Swing Gate Operator (VX300) | B25: 12 | C25: 48 | D25: 4 | E25: 32 | F25: 1.152 | G25: 0.03555555556 | H25: 13.824 | I25: 0.49152 | K25: Controller - V-SERIES | L25: 1
A26: SECTOR barrier (3M) | B26: 12 | C26: 50 | D26: 2 | E26: 2.5 | F26: 1.2 | G26: 0.001388888889 | H26: 14.4 | I26: 0.02 | K26: Controller - SECTOR | L26: 1
A27: SECTOR barrier (4.5M or 6.0M) | B27: 12 | C27: 50 | D27: 2 | E27: 6 | F27: 1.2 | G27: 0.003333333333 | H27: 14.4 | I27: 0.048 | K27: Controller - SECTOR | L27: 1
A28: D5-EVO Sliding Gate Operator with Pulse Stretcher | B28: 12 | C28: 75 | D28: 8.1 | E28: 30 | F28: 1.8 | G28: 0.0675 | H28: 21.6 | I28: 1.458 | K28: Controller - EVO | L28: 1
A29: D5 Smart Sliding Gate Operator (24VDC system) | B29: 24 | C29: 60 | D29: 8 | E29: 25 | F29: 1.44 | G29: 0.05555555556 | H29: 34.56 | I29: 1.92 | K29: Controller - DX | L29: 1 | N29: 5 meter gate @ 32m/min 2.5 sec ramp up and down
A30: D10 Smart Sliding Gate Operator (24VDC system) | B30: 24 | C30: 60 | D30: 9 | E30: 35 | F30: 1.44 | G30: 0.0875 | H30: 34.56 | I30: 3.024 | K30: Controller - DX | L30: 1 | N30: 6 meter gate @ 24m/min 2.5 sec ramp up and down
A31: D10 Turbo Smart Sliding Gate Operator (24VDC system) | B31: 24 | C31: 60 | D31: 10 | E31: 20 | F31: 1.44 | G31: 0.05555555556 | H31: 34.56 | I31: 1.92 | K31: Controller - DX | L31: 1 | N31: 6 meter gate @ 42m/min 2.5 sec ramp up and down
A32: D20 Smart Sliding Gate Operator (24VDC system) | B32: 24 | C32: 60 | D32: 10 | E32: 40 | F32: 1.44 | G32: 0.1111111111 | H32: 34.56 | I32: 3.84 | K32: Controller - DX | L32: 1 | N32: 6 meter gate @ 18m/min 2.5 sec ramp up and down
A33: R6 Single Swing Gate Operator | B33: 12 | C33: 25 | D33: 4 | E33: 30 | F33: 0.6 | G33: 0.03333333333 | H33: 7.2 | I33: 0.24 | K33: CP77 | L33: 1
A34: R6 Double Swing Gate Operator | B34: 12 | C34: 25 | D34: 8 | E34: 30 | F34: 0.6 | G34: 0.06666666667 | H34: 7.2 | I34: 0.48 | K34: CP77 | L34: 1
B41: VOLTS | C41: CURRENT | E41: TIME | F41: ENERGY | H41: WATTS
A42: ACCESSORIES | B42: =+B4 -> SYSTEM VOLTAGE | C42: =+C4 -> QUIESCENT CURRENT (mA) | D42: ACTIVE CURRENT (A) | E42: TIME / OPERATION - Secs Active (OPEN & CLOSE, etc.) | F42: Quiescent Ah consummed (per 24hrs) | G42: Active Ah consumed (per cycle) | H42: Quiescent W consumed (per 24hrs) | I42: Active W consumed (per cycle)
A43: Solar regulator 20A (ESOLRPG020V1) | B43: 12 | C43: 6 | F43: =IF(C43>0,C43/1000*24,"") -> 0.144 | G43: =IF(A43<>"",IF(D43>0,D43*E43/(60*60),C43),"") -> 6 | H43: =IF(C43>0,F43*B43,"") -> 1.728 | I43: =IF(D43>0,G43*H43,"") -> 
A44: I5 infra red beams - Tx & Rx | B44: 12 | C44: 67 | F44: =IF(C44>0,C44/1000*24,"") -> 1.608 | G44: =IF(A44<>"",IF(D44>0,D44*E44/(60*60),C44),"") -> 67 | H44: =IF(C44>0,F44*B44,"") -> 19.296 | I44: =IF(D44>0,G44*H44,"") -> 
A45: PHOTON Safety Beams | B45: 12 | C45: 30 | F45: 0.72 | G45: 30 | H45: 8.64
A46: 1 Channel CENTURION receiver | B46: 12 | C46: 11 | F46: 0.264 | G46: 11 | H46: 3.168
A47: 4 Channel CENTURION receiver | B47: 12 | C47: 25 | D47: 0.18 | E47: 0.5 | F47: 0.6 | G47: 2.5e-05 | H47: 7.2 | I47: 0.00018
A48: Supa Helix Receiver | B48: 12 | C48: 100 | D48: 0.27 | E48: 0.5 | F48: 2.4 | G48: 3.75e-05 | H48: 28.8 | I48: 0.00108
A49: G-Switch 22 | B49: 12 | C49: 80 | F49: 1.92 | G49: 80 | H49: 23.04
A50: MYGSM 88 | B50: 12 | C50: 120 | F50: 2.88 | G50: 120 | H50: 34.56
A51: POLOphone Entry Panel | B51: 12 | C51: 35 | F51: 0.84 | G51: 35 | H51: 10.08
A52: POLOphone Handset | B52: 12 | C52: 25 | F52: 0.6 | G52: 25 | H52: 7.2
A53: G-Speak Classic (Plus) | B53: 12 | C53: 30 | F53: 0.72 | G53: 30 | H53: 8.64
A54: Mkii GSM intercom | B54: 12 | C54: 350 | D54: 0.15 | F54: 8.4 | G54: 0 | H54: 100.8 | I54: 0
A55: SMARTGUARD (Wired) | B55: 12 | C55: 32 | D55: 0.18 | F55: 0.768 | G55: 0 | H55: 9.216 | I55: 0
A56: SOLO Reader | B56: 12 | C56: 50 | D56: 0.18 | F56: 1.2 | G56: 0 | H56: 14.4 | I56: 0
A57: Lattice Controller | B57: 12 | C57: 50 | D57: 0.18 | F57: 1.2 | G57: 0 | H57: 14.4 | I57: 0
A58: Lattice Slave Reader | B58: 12 | C58: 50 | D58: 0.18 | F58: 1.2 | G58: 0 | H58: 14.4 | I58: 0
A59: FLUX Stand Alone Loop Detector | B59: 12 | C59: 50 | F59: 1.2 | G59: 50 | H59: 14.4
A60: FLUX 11 Plug-in Loop Detector | B60: 12 | C60: 50 | F60: 1.2 | G60: 50 | H60: 14.4
A61: DC-DC Converter (used with A10 for battery back-up) | B61: 12 | C61: 150 | F61: 3.6 | G61: 150 | H61: 43.2
A62: Safety Edge | B62: 12 | C62: 30 | F62: 0.72 | G62: 30 | H62: 8.64
A63: Pulse Stretcher | B63: 12 | C63: 7 | F63: 0.168 | G63: 7 | H63: 2.016
A64: G-ULTRA 2G | B64: 12 | C64: 33 | D64: 0.35 | E64: 15 | F64: 0.792 | G64: 0.001458333333 | H64: 9.504 | I64: 0.01386
A65: G-SPEAK ULTRA 2G | B65: 12 | C65: 130 | D65: 0.35 | E65: 15 | F65: 3.12 | G65: 0.001458333333 | H65: 37.44 | I65: 0.0546
A66: G-ULTRA 3G PENTA BAND | B66: 12 | C66: 130 | D66: 0.35 | E66: 15 | F66: 3.12 | G66: 0.001458333333 | H66: 37.44 | I66: 0.0546
A67: WiZo | B67: 12 | C67: 30 | F67: 0.72 | G67: 30 | H67: 8.64
A68: Traffic Lights | B68: 12 | C68: 20 | F68: =IF(C68>0,C68/1000*24,"") -> 0.48 | G68: 20 | H68: =IF(C68>0,F68*B68,"") -> 5.76 | I68: =IF(D68>0,G68*H68,"") -> 
A69: CLAWS Controller | B69: 12 | C69: 70 | F69: 1.68 | G69: 70 | H69: 20.16
A70: No Touch Pushbutton | B70: 12 | C70: 30 | F70: 0.72 | G70: 30 | H70: 8.64
A79: System Voltage
A80: 12
A81: 24

Sheet Solar Insolation Map (World)
A1: INSOLATION MAP - World
A25: FRANCE
A26: CITY | B26: Effective Sun Hours
A27: RENNE | B27: 1.24
A28: NANTES | B28: 1.46
A29: LE HAVRE | B29: 1.18
A30: BORDEAUX | B30: 1.81
A31: TOULOUSE | B31: 2.53
A32: MARSEILLE | B32: 2.97
A33: NICE | B33: 2.58
A34: MONTPELLIER | B34: 1.65
A35: LYON | B35: 1.56
A36: REIMS | B36: 0.95
A37: PARIS | B37: 1.11

Sheet Solar Insolation Map (Africa)
A1: INSOLATION MAP - Africa

Sheet 1 (hidden)
A1: solar
